[Event "3rd FIDE WCCC Blitz G08 2019"]
[Site "Minsk"]
[Date "2019.08.18"]
[Round "4.5"]
[White "Ukrainskaya, Ilona"]
[Black "Tong, Thai Hoang An"]
[Result "0-1"]
[ECO "D00"]
[WhiteElo "1211"]
[BlackElo "1208"]
[Annotator "NA"]
[PlyCount "112"]
[EventDate "2019.08.18"]
[EventType "swiss"]
[EventCountry "BLR"]
[SourceTitle "playchess.com"]
[Source "ChessBase"]
[SourceQuality "1"]
[TimeControl "300+2"]

1. d4 {[%emt 0:00:01]} d5 {[%emt 0:00:00]} 2. Bf4 {[%emt 0:00:04]} c5 {[%emt 0:00:00]} 3. e3 {[%emt 0:00:07]} Nc6 {[%emt 0:00:02]} 4. Nf3 {[%emt 0:00:10]} Bg4 {[%emt 0:00:03]} 5. c3 {[%emt 0:00:33]} Nf6 {[%emt 0:00:02]} 6. Nbd2 {[%emt 0:00:22]} e6 {[%emt 0:00:04]} 7. Bd3 {[%emt 0:00:09]} Qb6 {[%emt 0:00:40]} 8. Rb1 {[%emt 0:00:07]} c4 {[%emt 0:00:22]} 9. Bc2 {[%emt 0:00:06]} Be7 {[%emt 0:00:03]} 10. h3 {[%emt 0:00:09]} Bh5 {[%emt 0:00:05]} 11. O-O {[%emt 0:00:10]} O-O {[%emt 0:00:05]} 12. Qc1 {[%emt 0:00:21]} Rac8 {[%emt 0:00:14]} 13. Ne5 {[%emt 0:00:08]} Nxe5 {[%emt 0:00:14]} 14. dxe5 {[%emt 0:00:21]} Nd7 {[%emt 0:00:03]} 15. Bd1 {[%emt 0:00:15]} Bg6 {[%emt 0:00:07]} 16. Bc2 {[%emt 0:00:02]} Bd3 {[%emt 0:00:06]} 17. Bxd3 {[%emt 0:00:14]} cxd3 {[%emt 0:00:01]} 18. Qd1 {[%emt 0:00:14]} Nc5 {[%emt 0:00:13]} 19. Nf3 {[%emt 0:00:11]} f6 {[%emt 0:00:21]} 20. exf6 {[%emt 0:00:15]} Bxf6 {[%emt 0:00:02]} 21. Ne1 {[%emt 0:00:09]} e5 {[%emt 0:00:02]} 22. Bg3 {[%emt 0:00:06]} e4 {[%emt 0:00:02]} 23. f3 {[%emt 0:00:07]} Bg5 {[%emt 0:00:03]} 24. Bf2 {[%emt 0:00:10]} Ne6 {[%emt 0:00:37]} 25. fxe4 {[%emt 0:00:18]} Bxe3 {[%emt 0:00:07]} 26. Bxe3 {[%emt 0:00:24]} Qxe3+ {[%emt 0:00:02]} 27. Kh2 {[%emt 0:00:09]} Rxf1 {[%emt 0:00:04]} 28. Qg4 {[%emt 0:00:05]} Re8 {[%emt 0:00:10]} 29. Qg3 {[%emt 0:00:08]} Qxg3+ {[%emt 0:00:05]} 30. Kxg3 {[%emt 0:00:02]} dxe4 {[%emt 0:00:02]} 31. Kh2 {[%emt 0:00:08]} d2 {[%emt 0:00:02]} 32. Nc2 {[%emt 0:00:04]} Rxb1 {[%emt 0:00:02]} 33. Ne3 d1=Q {[%emt 0:00:05]} 34. Nxd1 {[%emt 0:00:03]} Rxd1 {[%emt 0:00:01]} 35. Kg3 {[%emt 0:00:01]} Rd2 {[%emt 0:00:02]} 36. Kh2 {[%emt 0:00:02]} Rxb2 {[%emt 0:00:01]} 37. Kg3 {[%emt 0:00:02]} Rxa2 {[%emt 0:00:01]} 38. Kh2 {[%emt 0:00:01]} Ra3 {[%emt 0:00:00]} 39. Kg3 {[%emt 0:00:01]} Rxc3+ {[%emt 0:00:02]} 40. Kh2 {[%emt 0:00:01]} a5 {[%emt 0:00:01]} 41. Kg1 {[%emt 0:00:02]} a4 {[%emt 0:00:01]} 42. Kh2 {[%emt 0:00:01]} a3 {[%emt 0:00:01]} 43. Kg1 {[%emt 0:00:01]} a2 {[%emt 0:00:01]} 44. Kh2 {[%emt 0:00:01]} a1=Q {[%emt 0:00:05]} 45. h4 {[%emt 0:00:03]} Nf4 {[%emt 0:00:02]} 46. h5 {[%emt 0:00:01]} Qb2 {[%emt 0:00:02]} 47. h6 {[%emt 0:00:03]} Rc2 {[%emt 0:00:02]} 48. Kg3 {[%emt 0:00:04]} Rxg2+ {[%emt 0:00:05]} 49. Kxf4 {[%emt 0:00:02]} Rf8+ {[%emt 0:00:01]} 50. Kxe4 {[%emt 0:00:02]} Qe2+ {[%emt 0:00:02]} 51. Kd5 {[%emt 0:00:00]} Rd8+ {[%emt 0:00:01]} 52. Kc5 {[%emt 0:00:01]} Qc2+ {[%emt 0:00:02]} 53. Kb6 {[%emt 0:00:01]} Rg6+ {[%emt 0:00:01]} 54. Ka7 {[%emt 0:00:01]} Qa4+ {[%emt 0:00:03]} 55. Kxb7 {[%emt 0:00:02]} Qc6+ {[%emt 0:00:02]} 56. Ka7 {[%emt 0:00:01]} Ra8# 0-1

[Event "3rd FIDE WCCC Blitz G08 2019"]
[Site "Minsk"]
[Date "2019.08.18"]
[Round "4.6"]
[White "Lyapina, Mariya"]
[Black "Mierina, Lauma"]
[Result "1-0"]
[ECO "D37"]
[WhiteElo "1349"]
[BlackElo "1014"]
[Annotator "NA"]
[PlyCount "177"]
[EventDate "2019.08.18"]
[EventType "swiss"]
[EventCountry "BLR"]
[SourceTitle "playchess.com"]
[Source "ChessBase"]
[SourceQuality "1"]
[TimeControl "300+2"]

1. d4 {[%emt 0:00:00]} d5 {[%emt 0:00:00]} 2. c4 {[%emt 0:00:00]} e6 {[%emt 0:00:01]} 3. Nc3 {[%emt 0:00:03]} Nf6 {[%emt 0:00:01]} 4. Nf3 {[%emt 0:00:04]} Nc6 {[%emt 0:00:03]} 5. Qa4 {[%emt 0:00:08]} Bd7 {[%emt 0:00:07]} 6. Qb3 {[%emt 0:00:02]} dxc4 {[%emt 0:00:08]} 7. Qxb7 {[%emt 0:00:20]} Rb8 {[%emt 0:00:13]} 8. Qa6 {[%emt 0:00:06]} Rb6 {[%emt 0:00:06]} 9. Qxc4 {[%emt 0:00:03]} Bb4 {[%emt 0:00:13]} 10. Bd2 {[%emt 0:00:23]} Bxc3 {[%emt 0:00:03]} 11. Bxc3 {[%emt 0:00:02]} O-O {[%emt 0:00:10]} 12. e3 {[%emt 0:00:03]} h6 {[%emt 0:00:03]} 13. Be2 {[%emt 0:00:03]} Rb8 {[%emt 0:00:05]} 14. Qd3 {[%emt 0:00:05]} Nb4 {[%emt 0:00:07]} 15. Bxb4 {[%emt 0:00:09]} Rxb4 {[%emt 0:00:04]} 16. Qc3 {[%emt 0:00:08]} Rb8 {[%emt 0:00:03]} 17. O-O {[%emt 0:00:03]} Nd5 {[%emt 0:00:06]} 18. Qd2 {[%emt 0:00:11]} Bb5 {[%emt 0:00:06]} 19. Bxb5 {[%emt 0:00:03]} Rxb5 {[%emt 0:00:02]} 20. e4 {[%emt 0:00:02]} Nf6 {[%emt 0:00:09]} 21. Rfe1 {[%emt 0:00:09]} Rb8 {[%emt 0:00:03]} 22. b3 {[%emt 0:00:06]} Nd7 {[%emt 0:00:03]} 23. Qc2 {[%emt 0:00:13]} Rb4 {[%emt 0:00:10]} 24. Rac1 {[%emt 0:00:04]} Rb7 {[%emt 0:00:05]} 25. Qc6 {[%emt 0:00:06]} Qc8 {[%emt 0:00:11]} 26. Red1 {[%emt 0:00:16]} Nb6 {[%emt 0:00:07]} 27. Ne5 {[%emt 0:00:21]} f6 {[%emt 0:00:10]} 28. Ng6 {[%emt 0:01:08]} Rf7 {[%emt 0:00:05]} 29. Qc5 {[%emt 0:00:11]} Nd7 {[%emt 0:00:08]} 30. Ne7+ {[%emt 0:00:02]} Rxe7 {[%emt 0:00:07]} 31. Qxe7 {[%emt 0:00:03]} Nb6 {[%emt 0:00:09]} 32. Rc6 {[%emt 0:00:11]} e5 {[%emt 0:00:12]} 33. dxe5 {[%emt 0:00:03]} fxe5 {[%emt 0:00:05]} 34. Rdc1 {[%emt 0:00:11]} Na8 {[%emt 0:00:08]} 35. Qxe5 {[%emt 0:00:03]} Kh7 {[%emt 0:00:12]} 36. Qf5+ {[%emt 0:00:07]} Qxf5 {[%emt 0:00:03]} 37. exf5 {[%emt 0:00:02]} Kg8 {[%emt 0:00:06]} 38. Rg6 {[%emt 0:00:05]} Kf7 {[%emt 0:00:05]} 39. Rcc6 {[%emt 0:00:02]} Nb6 {[%emt 0:00:07]} 40. Rg3 {[%emt 0:00:11]} Nd5 {[%emt 0:00:04]} 41. Rc5 {[%emt 0:00:13]} Nf4 {[%emt 0:00:05]} 42. Rgc3 {[%emt 0:00:01]} Ne2+ {[%emt 0:00:04]} 43. Kf1 {[%emt 0:00:02]} Nxc3 {[%emt 0:00:02]} 44. Rxc3 {[%emt 0:00:01]} Ke7 {[%emt 0:00:03]} 45. Rg3 {[%emt 0:00:01]} Kf6 {[%emt 0:00:04]} 46. Rf3 {[%emt 0:00:02]} g5 {[%emt 0:00:07]} 47. fxg6+ {[%emt 0:00:02]} Kxg6 {[%emt 0:00:01]} 48. Ke2 {[%emt 0:00:02]} Rb4 {[%emt 0:00:06]} 49. Rc3 {[%emt 0:00:04]} Re4+ {[%emt 0:00:07]} 50. Kf3 {[%emt 0:00:01]} Re7 {[%emt 0:00:02]} 51. g4 {[%emt 0:00:02]} Kg5 {[%emt 0:00:05]} 52. h3 {[%emt 0:00:01]} Kh4 {[%emt 0:00:05]} 53. Kg2 {[%emt 0:00:01]} h5 {[%emt 0:00:04]} 54. gxh5 {[%emt 0:00:02]} Kxh5 {[%emt 0:00:02]} 55. Rc5+ {[%emt 0:00:01]} Kh4 {[%emt 0:00:01]} 56. Ra5 {[%emt 0:00:03]} c6 {[%emt 0:00:03]} 57. Ra6 {[%emt 0:00:01]} Rc7 {[%emt 0:00:02]} 58. f4 {[%emt 0:00:02]} Kh5 {[%emt 0:00:02]} 59. Kg3 {[%emt 0:00:02]} Kg6 {[%emt 0:00:02]} 60. Kg4 {[%emt 0:00:01]} Kf6 {[%emt 0:00:05]} 61. f5 {[%emt 0:00:03]} Kf7 {[%emt 0:00:04]} 62. Kg5 {[%emt 0:00:02]} Kg7 {[%emt 0:00:01]} 63. f6+ {[%emt 0:00:02]} Kf7 {[%emt 0:00:02]} 64. h4 {[%emt 0:00:02]} Kg8 {[%emt 0:00:02]} 65. Kg6 {[%emt 0:00:01]} Kf8 {[%emt 0:00:02]} 66. h5 {[%emt 0:00:02]} Kg8 {[%emt 0:00:01]} 67. h6 {[%emt 0:00:02]} Kf8 {[%emt 0:00:01]} 68. h7 {[%emt 0:00:03]} Ke8 {[%emt 0:00:01]} 69. h8=Q+ {[%emt 0:00:03]} Kd7 {[%emt 0:00:02]} 70. Qg7+ {[%emt 0:00:03]} Kd6 {[%emt 0:00:01]} 71. Qxc7+ {[%emt 0:00:06]} Kxc7 {[%emt 0:00:02]} 72. Rxa7+ {[%emt 0:00:01]} Kb6 {[%emt 0:00:01]} 73. Re7 {[%emt 0:00:03]} Kc5 {[%emt 0:00:01]} 74. f7 {[%emt 0:00:01]} Kb4 {[%emt 0:00:02]} 75. f8=Q {[%emt 0:00:05]} Ka3 {[%emt 0:00:01]} 76. Rc7+ {[%emt 0:00:02]} Kxa2 {[%emt 0:00:02]} 77. Ra7+ {[%emt 0:00:02]} Kxb3 {[%emt 0:00:03]} 78. Qb8+ {[%emt 0:00:02]} Kc4 {[%emt 0:00:01]} 79. Rc7 {[%emt 0:00:02]} Kd5 {[%emt 0:00:02]} 80. Qd8+ {[%emt 0:00:02]} Kc5 {[%emt 0:00:01]} 81. Qg5+ {[%emt 0:00:03]} Kd6 {[%emt 0:00:02]} 82. Qe7+ {[%emt 0:00:02]} Kd5 {[%emt 0:00:02]} 83. Rd7+ {[%emt 0:00:03]} Kc4 {[%emt 0:00:02]} 84. Kf5 {[%emt 0:00:03]} Kb5 {[%emt 0:00:05]} 85. Rb7+ {[%emt 0:00:00]} Kc4 {[%emt 0:00:02]} 86. Ke5 {[%emt 0:00:00]} Kd3 {[%emt 0:00:03]} 87. Qa3+ {[%emt 0:00:00]} Kc4 {[%emt 0:00:03]} 88. Rb4+ {[%emt 0:00:00]} Kc5 {[%emt 0:00:02]} 89. Qc3# {[%emt 0:00:00] Kd5+ Ke4+} 1-0

[Event "3rd FIDE WCCC Blitz G08 2019"]
[Site "Minsk"]
[Date "2019.08.18"]
[Round "5.1"]
[White "Preobrazhenskaya, Diana"]
[Black "Trishkina, Evgeniya"]
[Result "1-0"]
[ECO "C52"]
[WhiteElo "1361"]
[BlackElo "1328"]
[Annotator "NA"]
[PlyCount "81"]
[EventDate "2019.08.18"]
[EventType "swiss"]
[EventCountry "BLR"]
[SourceTitle "playchess.com"]
[Source "ChessBase"]
[SourceQuality "1"]
[TimeControl "300+2"]

1. e4 {[%emt 0:00:00]} e5 {[%emt 0:00:00]} 2. Bc4 {[%emt 0:00:02]} Bc5 {[%emt 0:00:00]} 3. Nf3 {[%emt 0:00:02]} Nc6 {[%emt 0:00:01]} 4. b4 {[%emt 0:00:01]} Bxb4 {[%emt 0:00:04]} 5. c3 {[%emt 0:00:03]} Ba5 {[%emt 0:00:01]} 6. d4 {[%emt 0:00:03]} d6 {[%emt 0:00:04]} 7. Qb3 {[%emt 0:00:20]} Qf6 {[%emt 0:00:32]} 8. d5 {[%emt 0:00:16]} Nce7 {[%emt 0:00:10]} 9. Qa4+ {[%emt 0:00:07]} Bd7 {[%emt 0:00:06]} 10. Qxa5 {[%emt 0:00:04]} b6 {[%emt 0:00:03]} 11. Qb4 {[%emt 0:00:12]} Qg6 {[%emt 0:00:10]} 12. O-O {[%emt 0:00:53]} Qxe4 {[%emt 0:00:27]} 13. Re1 {[%emt 0:00:29]} Qg6 {[%emt 0:00:02]} 14. Bb5 {[%emt 0:00:13]} Nxd5 {[%emt 0:00:30]} 15. Qc4 {[%emt 0:00:06]} Nge7 {[%emt 0:00:43]} 16. Bxd7+ {[%emt 0:00:25]} Kxd7 {[%emt 0:00:02]} 17. Nh4 {[%emt 0:00:18]} Qf6 {[%emt 0:00:22]} 18. Qg4+ {[%emt 0:00:05]} Ke8 {[%emt 0:00:13]} 19. c4 {[%emt 0:00:05]} Nb4 {[%emt 0:00:22]} 20. Na3 {[%emt 0:00:12]} Nd3 {[%emt 0:00:11]} 21. Re2 {[%emt 0:00:10]} Nxc1 {[%emt 0:00:01]} 22. Rxc1 {[%emt 0:00:02]} Nc6 {[%emt 0:00:23]} 23. Nb5 {[%emt 0:00:11]} Qe7 {[%emt 0:00:21]} 24. Nf5 {[%emt 0:00:14]} Qd8 {[%emt 0:00:06]} 25. Qxg7 {[%emt 0:00:12]} Rf8 {[%emt 0:00:01]} 26. Qg3 {[%emt 0:00:17]} a6 {[%emt 0:00:01]} 27. Nc3 {[%emt 0:00:01]} Qf6 {[%emt 0:00:10]} 28. Ng7+ {[%emt 0:00:07]} Kd8 {[%emt 0:00:03]} 29. Nd5 {[%emt 0:00:03]} Qg6 {[%emt 0:00:09]} 30. Qh4+ {[%emt 0:00:11]} Kc8 {[%emt 0:00:04]} 31. Nh5 {[%emt 0:00:06]} Kb7 {[%emt 0:00:08]} 32. Ng3 {[%emt 0:00:11]} Nd4 {[%emt 0:00:01]} 33. Rd2 {[%emt 0:00:05]} c6 {[%emt 0:00:13]} 34. Ne3 {[%emt 0:00:06]} Ne6 {[%emt 0:00:06]} 35. Rxd6 {[%emt 0:00:06]} Kc7 {[%emt 0:00:04]} 36. Qe7+ {[%emt 0:00:02]} Kc8 {[%emt 0:00:04]} 37. Qd7+ {[%emt 0:00:03]} Kb8 {[%emt 0:00:01]} 38. Rxc6 {[%emt 0:00:04]} Ra7 {[%emt 0:00:10]} 39. Rxb6+ {[%emt 0:00:03]} Ka8 {[%emt 0:00:00]} 40. Qc6+ {[%emt 0:00:01]} Rb7 {[%emt 0:00:02]} 41. Qxb7# {[%emt 0:00:02]} 1-0

[Event "3rd FIDE WCCC Blitz G08 2019"]
[Site "Minsk"]
[Date "2019.08.18"]
[Round "5.2"]
[White "Phan, Nguyen Mai Chi"]
[Black "Frolova, Umila"]
[Result "1-0"]
[ECO "E92"]
[WhiteElo "2139"]
[BlackElo "1252"]
[Annotator "NA"]
[PlyCount "173"]
[EventDate "2019.08.18"]
[EventType "swiss"]
[EventCountry "BLR"]
[SourceTitle "playchess.com"]
[Source "ChessBase"]
[SourceQuality "1"]
[TimeControl "300+2"]

1. c4 {[%emt 0:00:00]} g6 {[%emt 0:00:00]} 2. d4 {[%emt 0:00:05]} Bg7 {[%emt 0:00:00]} 3. e4 {[%emt 0:00:03]} d6 {[%emt 0:00:00]} 4. Nf3 {[%emt 0:00:02]} Nf6 {[%emt 0:00:01]} 5. Nc3 {[%emt 0:00:00]} O-O {[%emt 0:00:00]} 6. Be2 {[%emt 0:00:07]} e5 {[%emt 0:00:00]} 7. d5 {[%emt 0:00:05]} a5 {[%emt 0:00:03]} 8. O-O Na6 9. h3 {[%emt 0:00:26]} Nc5 {[%emt 0:00:01]} 10. Qc2 {[%emt 0:00:03]} Nh5 11. Be3 {[%emt 0:00:04]} b6 {[%emt 0:00:23]} 12. Bxc5 {[%emt 0:00:02]} bxc5 {[%emt 0:00:02]} 13. Bd3 {[%emt 0:00:06]} Nf4 {[%emt 0:00:02]} 14. Ne2 {[%emt 0:00:01]} Nxd3 {[%emt 0:00:02]} 15. Qxd3 {[%emt 0:00:02]} f5 {[%emt 0:00:05]} 16. Ng3 {[%emt 0:00:09]} f4 {[%emt 0:00:04]} 17. Ne2 {[%emt 0:00:02]} h6 {[%emt 0:00:03]} 18. Nc3 {[%emt 0:00:05]} g5 {[%emt 0:00:04]} 19. Nh2 {[%emt 0:00:17]} Rf7 {[%emt 0:00:04]} 20. a3 {[%emt 0:00:22]} Bf8 {[%emt 0:00:23]} 21. Rfb1 {[%emt 0:00:15]} Rg7 {[%emt 0:00:06]} 22. f3 {[%emt 0:00:11]} h5 {[%emt 0:00:02]} 23. Qe2 {[%emt 0:00:02]} g4 {[%emt 0:00:30]} 24. fxg4 {[%emt 0:00:05]} hxg4 {[%emt 0:00:01]} 25. hxg4 {[%emt 0:00:02]} Qh4 {[%emt 0:00:07]} 26. Qf2 {[%emt 0:00:05]} Qh6 {[%emt 0:00:09]} 27. Nf3 {[%emt 0:00:33]} Rxg4 {[%emt 0:00:08]} 28. Kf1 {[%emt 0:00:15]} Qh1+ {[%emt 0:00:30]} 29. Qg1 Qh5 {[%emt 0:00:33]} 30. Qf2 {[%emt 0:00:13]} Qh1+ {[%emt 0:00:37]} 31. Qg1 {[%emt 0:00:04]} Qh5 {[%emt 0:00:03]} 32. Qh2 {[%emt 0:00:01]} Qg6 {[%emt 0:00:23]} 33. Kf2 {[%emt 0:00:13]} Ba6 {[%emt 0:00:23]} 34. b3 {[%emt 0:00:07]} Be7 {[%emt 0:00:24]} 35. Rh1 {[%emt 0:00:03]} Kf7 {[%emt 0:00:05]} 36. Qh7+ {[%emt 0:00:05]} Qg7 {[%emt 0:00:08]} 37. Qxg7+ {[%emt 0:00:02]} Kxg7 {[%emt 0:00:01]} 38. Rh3 {[%emt 0:00:07]} Rg8 {[%emt 0:00:04]} 39. Rah1 {[%emt 0:00:05]} Kf8 {[%emt 0:00:04]} 40. R1h2 {[%emt 0:00:08]} Bc8 {[%emt 0:00:11]} 41. Rh8 {[%emt 0:00:06]} Bd7 {[%emt 0:00:09]} 42. Rxg8+ {[%emt 0:00:14]} Kxg8 {[%emt 0:00:02]} 43. a4 {[%emt 0:00:09]} Rg3 {[%emt 0:00:03]} 44. Ne2 {[%emt 0:00:03]} Rg7 {[%emt 0:00:02]} 45. Ne1 {[%emt 0:00:15]} c6 {[%emt 0:00:04]} 46. Nc3 {[%emt 0:00:07]} Rg6 {[%emt 0:00:07]} 47. Nd3 {[%emt 0:00:03]} Rg7 {[%emt 0:00:02]} 48. Rh5 {[%emt 0:00:09]} Rg6 {[%emt 0:00:01]} 49. Nb1 {[%emt 0:00:06]} Bg4 {[%emt 0:00:02]} 50. Rh2 {[%emt 0:00:04]} Bd7 {[%emt 0:00:01]} 51. Nd2 {[%emt 0:00:01]} Rg7 {[%emt 0:00:01]} 52. Nf3 {[%emt 0:00:03]} Bg4 {[%emt 0:00:03]} 53. dxc6 {[%emt 0:00:06]} Bd8 {[%emt 0:00:06]} 54. Rh6 {[%emt 0:00:13]} Bc7 {[%emt 0:00:06]} 55. Nh2 {[%emt 0:00:07]} Bc8 {[%emt 0:00:03]} 56. Ne1 Rf7 {[%emt 0:00:04]} 57. Nc2 {[%emt 0:00:10]} Rg7 {[%emt 0:00:01]} 58. Na3 {[%emt 0:00:02]} Ba6 {[%emt 0:00:02]} 59. Nb5 {[%emt 0:00:02]} Bxb5 {[%emt 0:00:02]} 60. cxb5 {[%emt 0:00:02]} Bb6 {[%emt 0:00:01]} 61. Rxd6 {[%emt 0:00:03]} c4+ {[%emt 0:00:03]} 62. Kf1 {[%emt 0:00:06]} cxb3 {[%emt 0:00:01]} 63. Rd3 {[%emt 0:00:02]} b2 {[%emt 0:00:01]} 64. Rb3 {[%emt 0:00:02]} Bd4 {[%emt 0:00:01]} 65. Nf3 {[%emt 0:00:01]} Rh7 {[%emt 0:00:07]} 66. Nd2 {[%emt 0:00:13]} Rh1+ {[%emt 0:00:03]} 67. Ke2 {[%emt 0:00:02]} Be3 {[%emt 0:00:04]} 68. Rxb2 {[%emt 0:00:03]} Bxd2 {[%emt 0:00:01]} 69. Kxd2 {[%emt 0:00:01]} Rh2 {[%emt 0:00:01]} 70. Kd3 {[%emt 0:00:01]} Rh1 {[%emt 0:00:04]} 71. Kc4 {[%emt 0:00:01]} Rc1+ {[%emt 0:00:02]} 72. Kd5 {[%emt 0:00:01]} Ra1 {[%emt 0:00:01]} 73. c7 {[%emt 0:00:03]} Kg7 {[%emt 0:00:02]} 74. c8=Q {[%emt 0:00:02]} Rxa4 {[%emt 0:00:02]} 75. Kxe5 {[%emt 0:00:02]} Rb4 {[%emt 0:00:04]} 76. Qg4+ {[%emt 0:00:03]} Kf8 {[%emt 0:00:02]} 77. Qxf4+ {[%emt 0:00:02]} Ke8 {[%emt 0:00:01]} 78. Rxb4 {[%emt 0:00:01]} axb4 {[%emt 0:00:00]} 79. Qd2 {[%emt 0:00:02]} b3 {[%emt 0:00:02]} 80. b6 {[%emt 0:00:01]} Kf7 {[%emt 0:00:04]} 81. b7 {[%emt 0:00:01]} Kg6 {[%emt 0:00:01]} 82. b8=Q {[%emt 0:00:03]} b2 {[%emt 0:00:03]} 83. Qdxb2 {[%emt 0:00:02]} Kg5 {[%emt 0:00:01]} 84. Qg8+ {[%emt 0:00:03]} Kh4 {[%emt 0:00:02]} 85. Qf2+ {[%emt 0:00:02]} Kh5 {[%emt 0:00:02]} 86. Qf5+ {[%emt 0:00:01]} Kh4 {[%emt 0:00:01]} 87. Qfg4# {[%emt 0:00:01]} 1-0

[Event "3rd FIDE WCCC Blitz G08 2019"]
[Site "Minsk"]
[Date "2019.08.18"]
[Round "5.3"]
[White "Tong, Thai Hoang An"]
[Black "Lyapina, Mariya"]
[Result "1-0"]
[ECO "B50"]
[WhiteElo "1208"]
[BlackElo "1349"]
[Annotator "NA"]
[PlyCount "55"]
[EventDate "2019.08.18"]
[EventType "swiss"]
[EventCountry "BLR"]
[SourceTitle "playchess.com"]
[Source "ChessBase"]
[SourceQuality "1"]
[TimeControl "300+2"]

1. e4 {[%emt 0:00:01]} c5 {[%emt 0:00:00]} 2. Nf3 {[%emt 0:00:02]} d6 {[%emt 0:00:00]} 3. c3 {[%emt 0:00:06]} Nc6 {[%emt 0:00:02]} 4. d4 {[%emt 0:00:05]} cxd4 {[%emt 0:00:05]} 5. cxd4 {[%emt 0:00:01]} Nf6 {[%emt 0:00:06]} 6. Nc3 {[%emt 0:00:02]} g6 {[%emt 0:00:06]} 7. Bb5 {[%emt 0:00:02]} Bd7 {[%emt 0:00:08]} 8. O-O {[%emt 0:00:07]} a6 {[%emt 0:00:01]} 9. Ba4 {[%emt 0:00:02]} b5 {[%emt 0:00:01]} 10. Bb3 {[%emt 0:00:01]} Bg7 {[%emt 0:00:01]} 11. Bf4 {[%emt 0:00:05]} O-O {[%emt 0:00:03]} 12. Re1 {[%emt 0:00:09]} Qb6 {[%emt 0:00:40]} 13. e5 {[%emt 0:00:06]} dxe5 {[%emt 0:00:03]} 14. dxe5 {[%emt 0:00:02]} Ng4 {[%emt 0:00:09]} 15. Qxd7 {[%emt 0:00:36]} Nxf2 {[%emt 0:00:13]} 16. Be3 {[%emt 0:00:06]} Nh3+ {[%emt 0:00:43]} 17. gxh3 {[%emt 0:00:04]} Rad8 {[%emt 0:00:02]} 18. Bxb6 {[%emt 0:00:15]} Rxd7 {[%emt 0:00:02]} 19. e6 {[%emt 0:00:03]} fxe6 {[%emt 0:00:04]} 20. Bxe6+ {[%emt 0:00:01]} Kh8 {[%emt 0:00:07]} 21. Bxd7 {[%emt 0:00:03]} Rxf3 {[%emt 0:00:07]} 22. Bxc6 {[%emt 0:00:23]} Rf6 {[%emt 0:00:02]} 23. Rxe7 {[%emt 0:00:11]} Bf8 {[%emt 0:00:19]} 24. Rc7 {[%emt 0:00:10]} Kg8 {[%emt 0:00:09]} 25. Bd5+ {[%emt 0:00:05]} Kh8 {[%emt 0:00:04]} 26. Bd4 {[%emt 0:00:01]} Be7 {[%emt 0:00:24]} 27. Rxe7 {[%emt 0:00:00]} g5 {[%emt 0:00:03]} 28. Bxf6# {[%emt 0:00:00]} 1-0

[Event "3rd FIDE WCCC Blitz G08 2019"]
[Site "Minsk"]
[Date "2019.08.18"]
[Round "5.4"]
[White "Olimova, Rukiya"]
[Black "Matskevich, Varvara"]
[Result "1-0"]
[ECO "A45"]
[WhiteElo "1178"]
[BlackElo "1176"]
[Annotator "NA"]
[PlyCount "89"]
[EventDate "2019.08.18"]
[EventType "swiss"]
[EventCountry "BLR"]
[SourceTitle "playchess.com"]
[Source "ChessBase"]
[SourceQuality "1"]
[TimeControl "300+2"]

1. d4 {[%emt 0:00:00]} Nf6 {[%emt 0:00:02]} 2. Bf4 {[%emt 0:00:01]} e6 {[%emt 0:00:02]} 3. e3 {[%emt 0:00:02]} c5 {[%emt 0:00:02]} 4. c3 {[%emt 0:00:01]} b6 {[%emt 0:00:03]} 5. Bd3 {[%emt 0:00:02]} Bb7 {[%emt 0:00:02]} 6. Nf3 {[%emt 0:00:02]} Be7 {[%emt 0:00:04]} 7. O-O {[%emt 0:00:02]} O-O {[%emt 0:00:02]} 8. Nbd2 {[%emt 0:00:01]} d6 {[%emt 0:00:01]} 9. h3 {[%emt 0:00:04]} Nbd7 {[%emt 0:00:03]} 10. Qe2 {[%emt 0:00:06]} Qc7 {[%emt 0:00:01]} 11. Rac1 {[%emt 0:00:02]} Rac8 {[%emt 0:00:03]} 12. Rfd1 {[%emt 0:00:07]} Rfd8 {[%emt 0:00:03]} 13. e4 {[%emt 0:00:41]} h6 {[%emt 0:00:31]} 14. b3 {[%emt 0:00:47]} Kh8 {[%emt 0:00:39]} 15. c4 {[%emt 0:00:21]} cxd4 {[%emt 0:00:13]} 16. Nxd4 {[%emt 0:00:03]} Nc5 {[%emt 0:00:02]} 17. Nb5 {[%emt 0:00:05]} Qb8 {[%emt 0:00:04]} 18. Bb1 {[%emt 0:00:22]} Qa8 {[%emt 0:00:21]} 19. f3 {[%emt 0:00:22]} Bc6 {[%emt 0:00:07]} 20. Nc3 {[%emt 0:00:19]} Qb7 {[%emt 0:00:09]} 21. Nf1 {[%emt 0:00:11]} Qa6 {[%emt 0:00:18]} 22. Ne3 {[%emt 0:00:15]} Qa5 {[%emt 0:00:42]} 23. Qb2 {[%emt 0:00:24]} Nh5 {[%emt 0:00:22]} 24. Bh2 {[%emt 0:00:04]} Qb4 {[%emt 0:00:15]} 25. Nc2 {[%emt 0:00:16]} Na4 {[%emt 0:00:14]} 26. Nxa4 {[%emt 0:00:07]} Bxa4 {[%emt 0:00:02]} 27. Nxb4 {[%emt 0:00:06]} a5 {[%emt 0:00:06]} 28. Nd3 {[%emt 0:00:01]} Rxc4 {[%emt 0:00:03]} 29. bxc4 {[%emt 0:00:05]} Bg5 30. Rc3 {[%emt 0:00:15]} Bxd1 {[%emt 0:00:05]} 31. Qxb6 {[%emt 0:00:06]} a4 {[%emt 0:00:03]} 32. f4 {[%emt 0:00:08]} Bf6 {[%emt 0:00:06]} 33. g4 {[%emt 0:00:07]} Nxf4 34. Bxf4 {[%emt 0:00:02]} Rg8 {[%emt 0:00:25]} 35. Rc1 {[%emt 0:00:02]} Be2 {[%emt 0:00:03]} 36. Qxd6 {[%emt 0:00:03]} Bxd3 {[%emt 0:00:06]} 37. Bxd3 {[%emt 0:00:01]} Kh7 {[%emt 0:00:05]} 38. e5+ {[%emt 0:00:01]} Kh8 {[%emt 0:00:01]} 39. exf6 {[%emt 0:00:02]} g6 {[%emt 0:00:01]} 40. Bxh6 {[%emt 0:00:03]} Kh7 {[%emt 0:00:02]} 41. g5 {[%emt 0:00:01]} a3 {[%emt 0:00:07]} 42. Qe7 {[%emt 0:00:02]} Rg7 {[%emt 0:00:02]} 43. fxg7 {[%emt 0:00:02]} e5 {[%emt 0:00:03]} 44. Qf8 {[%emt 0:00:03]} e4 {[%emt 0:00:01]} 45. g8=Q# {[%emt 0:00:05]} 1-0